bitfinex-derivatives/quotes_ETHF0:USTF0_20251024
["timestamp","ask_amount","ask_price","bid_price","bid_amount"]
[1761316007691,0.3341,3905.9,3904.8,0.3445]
[1761316007991,0.3341,3905.9,3904.1,0.00288233]
[1761316008190,0.3341,3906.6,3905.5,0.3445]
[1761316008384,0.00213257,3906.7,3905.6,0.3445]
[1761316008588,0.3341,3906.6,3905.6,0.3445]
[1761316009194,0.00213257,3906.7,3905.8,0.3445]
[1761316009695,0.00213257,3906.7,3905.8,0.46076]
[1761316009899,0.00213257,3906.7,3905.0,0.1307]
[1761316009900,0.33623257,3906.7,3905.9,0.3445]
[1761316010086,0.33623257,3906.7,3905.1,0.3445]
[1761316011595,0.01823667,3905.9,3905.1,0.3445]
[1761316011896,0.35233667,3905.9,3905.1,0.3445]
[1761316012090,0.35233667,3905.9,3904.2,0.3445]
[1761316012491,0.01823667,3905.1,3904.2,0.3445]
[1761316012686,0.01823667,3905.1,3904.1,0.00288233]
[1761316012687,0.3341,3905.0,3904.1,0.00288233]
[1761316012889,0.3341,3904.9,3904.1,0.00288233]
[1761316013399,0.3341,3904.7,3904.1,0.00288233]
[1761316013700,0.3341,3904.3,3904.1,0.00288233]
[1761316014098,0.01823667,3904.4,3904.1,0.00288233]
[1761316014398,0.35233667,3904.4,3904.1,0.00288233]
[1761316014703,0.3341,3904.2,3904.1,0.00288233]
[1761316015699,0.35233667,3904.2,3904.1,0.00288233]
[1761316016102,5.35233667,3904.2,3904.1,0.00288233]
[1761316019107,0.336,3902.8,3900.5,0.3265]
[1761316019799,0.336,3902.3,3900.5,0.3265]
[1761316020398,0.336,3902.1,3898.3,0.00755826]
[1761316020599,0.336,3901.9,3898.7,0.3265]
[1761316020806,0.336,3901.7,3898.7,0.3265]
[1761316021003,0.336,3901.7,3898.3,0.00755826]
[1761316021004,0.336,3901.5,3899.0,0.3265]
[1761316021199,0.38064054,3901.5,3899.0,0.3265]
[1761316021996,0.46128,3901.4,3900.0,0.1305]
[1761316022196,1.49799,3902.2,3900.1,0.3265]
[1761316022197,0.336,3902.1,3900.1,0.3265]
[1761316022396,0.46137,3900.7,3900.1,0.3265]
[1761316022606,0.336,3901.6,3900.2,0.3265]
[1761316022607,0.4613,3901.3,3900.2,0.3265]
[1761316022908,0.681,3902.2,3900.2,0.3265]
[1761316023102,0.0024251,3902.8,3901.0,0.3265]
[1761316023304,1.4891,3901.8,3900.1,0.3265]
[1761316023507,11.53061,3902.0,3900.1,0.3265]
[1761316023508,0.46142,3900.3,3900.1,0.3265]
[1761316023709,0.46143,3900.2,3900.1,0.3265]
[1761316024105,0.46151,3899.6,3899.5,0.3265]
[1761316024305,0.336,3900.7,3899.5,0.3265]
[1761316024501,0.336,3900.7,3899.6,0.4615]
[1761316024700,0.46138,3900.6,3899.7,0.3265]
[1761316024905,0.46135,3900.9,3900.0,0.32942536]
[1761316025206,0.46142,3900.3,3900.1,0.3265]
[1761316025409,0.00209746,3900.6,3900.0,0.00292536]
[1761316025410,0.46144,3900.1,3900.0,0.00292536]
[1761316025928,0.00209746,3900.6,3900.0,0.00292536]
[1761316026112,34.67349464,3899.0,3898.3,0.00755826]
[1761316026407,34.67349464,3899.0,3898.5,0.46162]
[1761316026598,34.67349464,3899.0,3898.3,0.00755826]
[1761316027009,0.336,3898.9,3898.3,0.00755826]
[1761316027213,34.67349464,3899.0,3898.3,0.00755826]
[1761316027421,34.67349464,3899.0,3898.4,0.1305]
[1761316027805,34.67349464,3899.0,3898.3,0.00755826]
[1761316027806,0.3359,3898.9,3898.3,0.00755826]
[1761316028111,0.3359,3898.9,3897.8,0.0256555]
[1761316028803,0.3359,3898.9,3897.8,0.02813892]
[1761316030017,34.67349464,3899.0,3897.9,0.326]
[1761316030401,35.00939464,3899.0,3897.9,0.326]
[1761316030611,0.3359,3898.8,3897.8,0.02813892]
[1761316031108,34.62355915,3899.0,3898.7,0.4616]
[1761316031311,34.62355915,3899.0,3898.8,0.326]
[1761316031810,34.62355915,3899.0,3898.2,0.78765]
[1761316032004,34.62355915,3899.0,3898.4,0.326]
[1761316032205,34.62355915,3899.0,3898.9,0.326]
[1761316032400,34.62355915,3899.0,3898.4,0.4618]
[1761316032604,34.62355915,3899.0,3898.4,0.326]
[1761316033111,0.3359,3898.9,3897.9,0.326]
[1761316033510,34.62355915,3899.0,3897.9,0.78769]
[1761316033708,34.62355915,3899.0,3898.5,0.46162]
[1761316034013,34.62355915,3899.0,3898.6,0.326]
[1761316034607,34.62355915,3899.0,3898.7,0.326]
[1761316034813,34.62355915,3899.0,3898.9,0.326]
[1761316035118,17.15151296,3899.0,3898.9,0.326]
[1761316035408,17.15151296,3899.0,3898.8,5.46158]
[1761316035409,0.3359,3898.9,3898.8,5.46158]
[1761316035614,0.3359,3898.9,3898.8,0.46158]
[1761316035615,1.7e-07,3898.9,3898.8,0.46158]
[1761316035820,0.1342,3899.5,3898.8,6.11158]
[1761316035821,0.0072,3899.5,3898.8,6.11158]
[1761316036109,0.1342,3900.6,3900.5,0.46139]
[1761316036519,0.1342,3900.6,3900.5,5.0]
[1761316036713,0.1388,3901.7,3901.3,0.46129]
[1761316036909,0.1388,3901.7,3900.5,0.46139]
[1761316036910,0.1342,3900.6,3900.5,0.46139]
[1761316037115,0.1342,3900.6,3900.5,0.4641746]
[1761316037508,0.14123274,3901.7,3900.5,5.0027846]
[1761316037708,0.4701,3900.6,3900.5,0.4641746]
[1761316037905,0.14123274,3901.7,3900.5,0.0027846]
[1761316038112,0.14123274,3901.7,3900.7,1.15342]
[1761316038315,0.14123274,3901.7,3901.5,0.46126]
[1761316040020,0.3359,3901.6,3901.5,0.46126]
[1761316041019,0.3359,3901.6,3901.5,5.46126]
[1761316041418,0.1342,3903.9,3901.5,5.46126]
[1761316041419,0.3359,3903.2,3901.5,8.34086729]
[1761316041716,0.1342,3901.7,3901.6,10.82328]
[1761316041916,0.1342,3901.7,3901.6,0.46128]
[1761316042118,0.4701,3901.7,3901.6,0.46128]
[1761316042421,0.3359,3902.3,3902.2,0.46121]
[1761316043117,0.1342,3902.8,3902.7,0.46115]
[1761316043515,0.1362561,3902.8,3902.7,0.46115]
[1761316043820,0.1362561,3902.8,3902.7,5.46115]
[1761316044623,1e-05,3903.9,3903.8,0.46102]
[1761316044827,1e-05,3903.9,3903.8,10.82502]
[1761316045118,1e-05,3903.9,3903.8,15.82502]
[1761316045309,0.33591,3903.9,3903.8,0.46102]
[1761316045513,0.33591,3903.9,3902.6,1.1529]
[1761316045716,0.3381804,3903.9,3903.6,0.46104]
[1761316045921,0.3381804,3903.9,3903.7,0.46102]
[1761316046315,0.0022804,3903.9,3903.7,5.46102]
[1761316046511,0.3381804,3903.9,3903.7,0.46102]
[1761316046721,0.3381804,3903.9,3903.8,10.349]
[1761316047019,0.3359,3904.9,3903.8,15.348]
[1761316047220,0.1342,3905.0,3903.8,0.46102]
[1761316047221,0.4701,3903.9,3903.8,0.46102]
[1761316047519,8.94873854,3905.0,3904.8,0.4609]
[1761316047716,8.94873854,3905.0,3904.4,0.46094]
[1761316047717,0.4609,3904.9,3904.4,0.46094]
[1761316047919,0.46091,3904.8,3904.4,0.46094]
[1761316048114,0.46093,3904.6,3904.1,0.46097]
[1761316048319,0.46093,3904.6,3904.3,0.46096]
[1761316048517,0.00207192,3904.9,3903.2,1.15273]
[1761316048718,1.15242,3904.3,3903.0,0.4644316]
[1761316048912,0.1342,3903.9,3903.2,0.46109]
[1761316049114,0.59522,3903.9,3903.5,0.46105]
[1761316049311,8.81453854,3903.8,3903.0,0.0033216]
[1761316049519,0.3359,3903.7,3903.6,0.46104]
[1761316049716,1.15232,3904.7,3903.0,0.0033216]
[1761316049717,0.00207192,3904.9,3903.2,24.20718]
[1761316050020,0.33797192,3904.9,3904.8,0.4609]
[1761316050527,1.15161,3907.1,3905.9,0.46077]
[1761316050830,1.15152,3907.4,3904.8,10.388]
[1761316050831,0.1342,3905.0,3904.8,10.388]
[1761316051027,0.1342,3905.0,3904.9,0.46089]
[1761316051429,0.13612939,3905.0,3904.9,5.46377029]
[1761316051824,0.13612939,3905.0,3904.9,0.46377029]
[1761316052126,0.13612939,3905.0,3904.9,0.00288029]
[1761316052528,0.47202939,3905.0,3904.9,0.00288029]
[1761316053624,0.47202939,3905.0,3904.9,0.46377029]
[1761316054930,0.47202939,3905.0,3904.9,5.46377029]
[1761316055727,0.47202939,3905.0,3904.9,0.00288029]
[1761316056224,0.47202939,3905.0,3904.9,5.00288029]
[1761316056431,0.1342,3906.1,3904.9,5.00288029]
[1761316056732,0.3359,3906.0,3905.5,0.46082]
[1761316057027,0.4701,3905.0,3904.9,0.46377029]
[1761316057427,1.3813,3905.5,3905.3,0.46084]
[1761316057624,1.3813,3905.5,3904.9,0.46377029]
[1761316057625,1.3813,3905.1,3904.9,0.46377029]
[1761316058224,1.3813,3905.1,3903.2,1.15272]
[1761316058225,1.3813,3904.8,3903.2,1.15272]
[1761316058528,0.5612,3905.0,3902.7,1.15288]
[1761316058529,1.15233,3904.6,3902.7,1.15288]
[1761316058727,1.3813,3904.0,3903.5,0.46105]
[1761316059034,1.3813,3903.8,3902.5,8.871]
[1761316059226,1.3813,3903.6,3903.5,0.00179818]
[1761316059721,1.3813,3903.9,3903.5,0.00179818]
[1761316060424,1.3813,3903.9,3903.7,0.46103]
[1761316060622,1.3813,3903.9,3903.6,0.46104]
[1761316060931,1.3813,3903.9,3903.7,0.46103]
[1761316061228,1.3813,3904.3,3903.5,0.00179818]
[1761316061428,1.3813,3904.3,3904.0,0.46099]
[1761316061633,1.71342,3905.0,3904.6,0.46092]
[1761316061634,1.3813,3904.9,3904.6,0.46092]
[1761316061930,0.5612,3905.0,3903.5,0.00179818]
[1761316061931,1.3813,3903.9,3903.5,0.00179818]
[1761316062130,0.461,3904.0,3903.5,0.00179818]
[1761316062131,1.3813,3903.6,3903.5,0.00179818]
[1761316062327,1.3813,3902.7,3902.1,0.46122]
[1761316062534,1.3813,3902.9,3901.3,0.8789]
[1761316062739,1.3813,3901.9,3901.3,0.46131]
[1761316063028,1.3813,3901.8,3901.3,0.46131]
[1761316063230,1.3813,3901.6,3900.8,10.37]
[1761316063435,1.3813,3901.6,3900.7,11.52047]
[1761316063628,1.3813,3901.4,3900.9,5.18902864]
[1761316063828,1.3813,3901.4,3900.9,0.00239513]
[1761316064036,0.0018564,3901.6,3901.3,1.34021]
[1761316064245,0.5612,3903.0,3900.9,0.00239513]
[1761316064246,1.3813,3903.5,3901.4,10.359]
[1761316064545,0.88932902,3904.8,3901.4,10.359]
[1761316064546,1.3813,3903.4,3902.4,0.8789]
[1761316064836,3.313,3904.8,3901.6,1.1532]
[1761316064837,1.3813,3902.8,3901.6,1.1532]
[1761316065132,1.3813,3902.8,3902.6,0.46115]
[1761316065324,1.38454533,3902.8,3902.6,0.46115]
[1761316065725,0.00324533,3902.8,3902.7,0.8789]
[1761316066021,0.00324533,3902.8,3902.6,0.46115]
[1761316066228,1.38454533,3902.8,3902.6,0.46115]
[1761316066422,1.38454533,3902.8,3901.7,1.15318]
[1761316066629,1.38454533,3902.8,3901.4,1.15326]
[1761316066630,0.46117,3902.6,3901.4,1.15326]
[1761316066840,1.3813,3902.5,3902.2,0.46121]
[1761316067024,1.3813,3902.5,3902.3,0.4612]
[1761316067332,1.3813,3902.3,3902.1,0.46122]
[1761316068025,1.3813,3902.3,3901.5,1.15325]
[1761316068026,1.3813,3904.4,3902.3,0.8789]
[1761316068227,1.3813,3904.4,3902.5,0.8788]
[1761316068537,1.3813,3903.5,3903.3,0.46108]
[1761316068733,0.5612,3904.0,3902.3,10.404]
[1761316068734,1.3813,3903.9,3903.7,0.46102]
[1761316069133,1.38411702,3903.9,3903.7,0.46297121]
[1761316069324,0.00281702,3903.9,3903.7,0.46297121]
[1761316069530,1.38411702,3903.9,3903.7,0.00195121]
[1761316069730,1.38411702,3903.9,3903.7,0.46298121]
[1761316069930,0.00281702,3903.9,3903.7,0.46298121]
[1761316071137,1.3813,3903.8,3903.7,0.46298121]
[1761316071539,0.00281702,3903.9,3903.7,0.46298121]
[1761316071741,0.00281702,3903.9,3903.8,0.8788]
[1761316072242,7.02e-06,3903.9,3903.8,5.8788]
[1761316072634,7.02e-06,3903.9,3903.8,6.78913256]
[1761316073338,7.02e-06,3903.9,3903.8,9.27393706]
[1761316075141,7.02e-06,3903.9,3903.8,11.10126996]
[1761316075439,7.02e-06,3903.9,3903.8,9.27393706]
[1761316075638,7.02e-06,3903.9,3903.8,11.10085949]
[1761316076145,1.3813,3906.7,3906.5,0.4607]
[1761316076536,0.5612,3907.0,3905.8,11.48896]
[1761316076537,0.5612,3907.0,3906.9,0.46066]
[1761316076840,0.5612,3907.0,3906.8,0.46066]
[1761316077047,1.275,3907.6,3907.1,0.46063]
[1761316077238,1.275,3907.6,3907.2,0.46061]
[1761316077538,1.27703529,3907.6,3906.8,0.00290488]
[1761316077942,1.27703529,3907.6,3907.2,0.46062]
[1761316078150,1.27703529,3907.6,3907.4,0.46059]
[1761316078337,1.73562,3907.3,3906.8,0.00290488]
[1761316078540,1.275,3906.9,3906.8,0.00290488]
[1761316078838,1.275,3906.6,3905.3,1.82582]
[1761316079042,1.275,3906.6,3905.4,10.316]
[1761316079339,1.275,3906.5,3906.1,0.46075]
[1761316079939,1.275,3906.9,3906.4,0.46072]
[1761316080139,1.275,3906.7,3906.2,0.46074]
[1761316080345,1.275,3906.2,3906.1,0.00199688]
[1761316080546,1.275,3906.2,3904.9,0.46089]
[1761316080854,1.15174,3906.7,3904.0,1.15251]
[1761316080855,1.275,3904.9,3904.0,1.15251]
[1761316081038,1.275,3904.9,3904.7,0.46091]
[1761316081238,1.275,3905.4,3905.1,0.46087]
[1761316081435,1.73584,3905.4,3905.1,0.46087]
[1761316081638,1.275,3905.3,3905.2,0.46085]
[1761316082347,1.275,3905.9,3905.5,0.46081]
[1761316082554,1.275,3905.7,3905.5,0.46082]
[1761316083540,0.5215,3906.0,3905.4,0.46083]
[1761316083732,0.5215,3906.0,3905.3,0.46084]
[1761316083937,0.4608,3905.8,3905.4,0.46083]
[1761316084131,1.275,3905.7,3905.5,0.46082]
[1761316084347,0.5215,3906.0,3905.9,0.46078]
[1761316084348,1.7965,3906.0,3905.9,0.46078]
[1761316084754,1.275,3906.0,3905.9,0.46078]
[1761316084941,0.5215,3907.0,3906.0,1.15192]
[1761316085238,0.5215,3907.0,3905.4,1.15208]
[1761316085239,1.275,3906.9,3905.4,1.15208]
[1761316085438,1.275,3906.9,3905.1,2.51313576]
[1761316085439,0.46077,3906.0,3905.1,0.00251622]
[1761316085746,1.275,3905.8,3905.1,0.00251622]
[1761316086045,1.275,3905.2,3905.1,0.00251622]
[1761316086433,1.73586,3905.2,3905.1,0.00251622]
[1761316087240,1.275,3904.4,3904.2,0.46097]
[1761316088232,1.27817043,3904.4,3904.2,0.46319777]
[1761316088635,1.27817043,3904.4,3904.2,0.00222777]
[1761316088834,1.27817043,3904.4,3904.2,0.46320777]
[1761316089045,1.2379,3904.3,3904.2,0.00222777]
[1761316089743,1.24107043,3904.4,3904.2,0.46319777]
[1761316089944,1.2379,3904.3,3904.2,0.46320777]
[1761316090944,0.00317043,3904.4,3904.2,0.46320777]
[1761316091243,4.3e-07,3904.4,3904.3,0.578]
[1761316091437,4.3e-07,3904.4,3904.3,5.578]
[1761316092347,4.3e-07,3904.4,3904.3,0.578]
[1761316092641,4.3e-07,3904.4,3904.3,5.578]
[1761316093034,4.3e-07,3904.4,3904.3,0.578]
[1761316093239,4.3e-07,3904.4,3904.3,15.798]
[1761316093837,4.3e-07,3904.4,3904.3,16.48176338]
[1761316094038,4.3e-07,3904.4,3904.3,20.09507761]
[1761316094239,4.3e-07,3904.4,3904.3,21.00900065]
[1761316094436,4.3e-07,3904.4,3904.3,19.18207822]
[1761316095352,4.3e-07,3904.4,3904.3,21.41691463]
[1761316095948,4.3e-07,3904.4,3904.3,16.41691463]
[1761316096247,0.649,3907.0,3904.3,18.60407822]
[1761316096444,1.2379,3907.6,3906.5,1.15178]
[1761316096643,1.2379,3907.6,3907.4,0.4606]
[1761316097341,1.24084189,3907.6,3907.4,0.4639128]
[1761316097737,1.24084189,3907.6,3907.4,10.6609128]
[1761316097941,0.00294189,3907.6,3907.4,10.6609128]
[1761316098546,1.24084189,3907.6,3907.4,11.3458061]
[1761316098750,1.24084189,3907.6,3907.4,0.0033128]
[1761316098954,1.2379,3907.5,3907.4,0.0033128]
[1761316099841,1.2379,3906.9,3906.7,0.46068]
[1761316100041,1.2379,3906.9,3906.2,9.262]
[1761316100241,1.2379,3906.9,3906.7,0.46067]
[1761316100947,1.2379,3906.9,3906.7,0.46364938]
[1761316101251,1.2379,3906.9,3906.7,0.00297938]
[1761316101646,1.69857,3906.8,3906.7,0.00297938]
[1761316102241,1.2379,3906.8,3906.7,0.00297938]
[1761316103244,1.2379,3907.3,3906.8,0.46067]
[1761316103440,0.00294189,3907.6,3906.8,0.46067]
[1761316103441,1.24084189,3907.6,3906.9,10.163]
[1761316103640,0.5076,3906.9,3906.8,0.6848933]
[1761316103943,0.5076,3906.9,3906.7,0.00297938]
[1761316103944,1.2379,3906.8,3906.7,0.00297938]
[1761316106454,1.2379,3907.5,3907.3,0.46061]
[1761316106947,0.5076,3906.9,3906.7,0.00297938]
[1761316107250,1.2379,3906.8,3906.7,0.00297938]
[1761316108448,1.2379,3907.5,3906.7,0.00297938]
[1761316108751,1.2379,3907.4,3907.2,0.46062]
[1761316110654,1.2379,3907.4,3907.3,10.129]
[1761316110950,1.2379,3907.4,3907.2,0.46062]
[1761316111158,1.2379,3906.8,3906.7,0.46366938]
[1761316111454,1.2379,3906.8,3906.7,10.58566938]
[1761316111639,1.2379,3906.8,3906.7,0.00297938]
[1761316112045,1.2379,3906.8,3906.7,9.66597938]
[1761316112241,1.69857,3906.8,3906.7,0.00297938]
[1761316112948,1.2379,3906.8,3906.7,0.46366938]
[1761316113149,1.2379,3907.4,3907.3,0.46061]
[1761316113356,1.2379,3907.4,3907.1,10.108]
[1761316113549,1.2379,3907.4,3907.3,0.46061]
[1761316114845,1.2379,3907.4,3907.1,10.108]
[1761316114846,1.24084189,3907.6,3907.5,0.46059]
[1761316115950,1.2379,3906.8,3906.7,0.00297938]
[1761316117247,0.46069,3906.7,3905.9,0.6857003]
[1761316117449,0.46069,3906.7,3905.4,0.6857003]
[1761316117450,1.0845,3905.6,3905.4,0.6857003]
[1761316117652,1.0845,3905.5,3905.2,0.46086]
[1761316117853,1.0845,3905.4,3904.8,0.6857003]
[1761316118052,1.0845,3905.4,3905.2,0.46086]
[1761316118252,1.0845,3905.4,3905.2,0.46273909]
[1761316119158,1.0845,3905.4,3905.2,1.14843939]
[1761316119350,0.4314,3906.0,3905.9,0.46078]
[1761316119555,0.46064,3907.1,3906.5,0.4607]
[1761316119853,0.46064,3907.1,3906.0,1.15193]
[1761316119854,1.0845,3906.9,3906.7,0.46068]
[1761316120057,0.649,3907.7,3907.5,0.46059]
[1761316120251,0.649,3907.7,3907.4,0.4606]
[1761316120554,1.0845,3907.5,3907.4,0.4606]
[1761316120748,0.649,3907.7,3907.4,0.4606]
[1761316121561,1.89e-06,3907.6,3907.5,0.3168]
[1761316122554,0.649,3907.7,3907.5,0.3168]
[1761316122555,1.0845,3909.2,3908.6,0.46046]
[1761316122759,1.0845,3908.9,3907.5,3.39850692]
[1761316123064,1.0845,3908.7,3906.8,1.36978661]
[1761316123360,1.0845,3908.3,3906.9,3.266]
[1761316123556,1.08750306,3908.3,3908.2,0.46051]
[1761316123858,1.08750306,3908.3,3907.4,1.1515]
[1761316123859,3.06e-06,3908.3,3908.1,10.52951]
[1761316124354,3.06e-06,3908.3,3908.1,0.46051]
[1761316124558,1.0845,3908.2,3908.1,0.46051]
[1761316124956,1.0845,3908.2,3908.0,0.46053]
[1761316125157,1.0845,3908.2,3908.1,10.064]
[1761316125363,3.06e-06,3908.3,3908.2,0.46051]
[1761316125562,1.08450306,3908.3,3908.2,0.46051]
[1761316125864,3.06e-06,3908.3,3908.2,0.46051]
[1761316126063,3.06e-06,3908.3,3908.2,5.46051]
[1761316126861,3.06e-06,3908.3,3908.2,0.46051]
[1761316127062,3.06e-06,3908.3,3908.2,15.51351]
[1761316127457,3.06e-06,3908.3,3908.2,15.51051]
[1761316128062,3.06e-06,3908.3,3908.2,18.82724536]
[1761316129065,3.06e-06,3908.3,3908.2,13.82724536]
[1761316129453,3.06e-06,3908.3,3908.2,18.82724536]
[1761316129661,3.06e-06,3908.3,3908.2,36.84824536]
[1761316130252,3.06e-06,3908.3,3908.2,3.77724536]
[1761316130563,3.06e-06,3908.3,3908.1,0.91280502]
[1761316130868,3.06e-06,3908.3,3908.1,0.46051]
[1761316131363,3.06e-06,3908.3,3908.2,5.0]
[1761316131665,3.06e-06,3908.3,3908.2,9.2584359]
[1761316131853,3.06e-06,3908.3,3908.2,19.2994359]
[1761316132359,3.06e-06,3908.3,3908.2,18.38663088]
[1761316132563,3.06e-06,3908.3,3908.2,19.29906471]
[1761316133067,3.06e-06,3908.3,3908.2,4.71476964]
[1761316133264,3.06e-06,3908.3,3908.2,13.37663088]
[1761316133464,3.06e-06,3908.3,3908.2,18.37663088]
[1761316134666,3.06e-06,3908.3,3908.2,36.39963088]
[1761316134862,3.06e-06,3908.3,3908.2,3.34563088]
[1761316135068,3.06e-06,3908.3,3908.2,13.36163088]
[1761316135367,3.06e-06,3908.3,3908.2,8.34563088]
[1761316135670,3.06e-06,3908.3,3908.2,18.36163088]
[1761316135970,3.06e-06,3908.3,3908.2,8.34563088]
[1761316136268,3.06e-06,3908.3,3908.2,26.37663088]
[1761316136572,1.0845,3910.4,3910.2,0.46026]
[1761316136763,1.0845,3910.4,3910.3,10.006]
[1761316136965,1.0845,3910.4,3910.3,10.003]
[1761316137159,1.0845,3910.4,3910.2,0.46026]
[1761316137369,1.0799,3910.9,3910.8,0.4602]
[1761316137565,1.0799,3910.9,3910.2,1.72019959]
[1761316137566,0.4305,3911.4,3910.2,0.56951959]
[1761316137767,1.0799,3910.4,3909.1,0.91111091]
[1761316137964,1.0799,3910.4,3909.7,0.46033]
[1761316138161,1.0799,3910.4,3909.9,0.4603]
[1761316138471,1.0799,3910.4,3909.7,0.46033]
[1761316138772,1.0799,3910.1,3909.8,3.041]
[1761316139164,1.0799,3910.1,3909.7,0.00262066]
[1761316139373,1.0799,3910.1,3909.9,0.46031]
[1761316139674,1.0799,3910.1,3909.9,9.564]
[1761316139867,1.0799,3910.1,3909.9,9.999]
[1761316140066,1.0799,3910.1,3909.9,10.4593]
[1761316140371,1.0799,3910.1,3910.0,9.997]
[1761316140768,1.0799,3910.1,3909.7,0.00262066]
[1761316140960,1.0799,3910.0,3909.8,10.0]
[1761316141369,0.46031,3909.9,3909.7,0.00262066]
[1761316141559,1.0799,3909.8,3909.7,0.00262066]
[1761316142770,0.00322533,3910.4,3910.1,0.46028]
[1761316142771,1.0799,3910.3,3910.1,0.46028]
[1761316142973,1.0799,3910.3,3909.7,0.00262066]
[1761316144377,1.0799,3910.1,3909.7,0.46295066]
[1761316144584,1.0799,3910.1,3909.9,0.4603]
[1761316144772,1.0799,3910.1,3909.8,0.46031]
[1761316145177,1.0799,3910.1,3909.7,0.00262066]
[1761316145178,1.0799,3910.1,3910.0,0.4603]
[1761316145384,1.0799,3910.1,3909.7,0.00262066]
[1761316145681,1.0799,3910.1,3910.0,0.4603]
[1761316146072,1.0799,3910.1,3909.8,9.974]
[1761316146266,1.0799,3910.1,3909.9,0.4603]
[1761316146467,1.0799,3909.8,3909.7,0.00262066]
[1761316146666,1.5104,3908.7,3908.4,9.97]
[1761316146870,0.4305,3908.7,3908.3,1.15124]
[1761316147066,0.4305,3908.7,3908.4,0.46048]
[1761316147067,1.0799,3908.6,3908.4,0.46048]
[1761316147368,1.0799,3908.6,3907.5,2.06257091]
[1761316147573,0.9745,3908.6,3907.6,10.43357]
[1761316147770,0.9745,3907.7,3907.6,10.43357]
[1761316147971,0.9745,3908.5,3908.3,0.46049]
[1761316148169,0.9745,3908.5,3908.1,9.972]
[1761316148370,0.9745,3908.3,3907.5,0.56243221]
[1761316148570,0.9745,3907.7,3907.6,10.43058]
[1761316148771,0.4212,3907.8,3907.6,10.43058]
[1761316148977,0.9745,3907.7,3907.5,0.00220097]
[1761316149168,0.9745,3907.7,3907.5,0.46278097]
[1761316149366,0.9745,3908.2,3907.8,1.1514]
[1761316149571,0.9745,3908.2,3908.1,0.46052]
[1761316149773,0.9745,3908.2,3908.1,10.43052]
[1761316151679,1.405,3908.7,3908.6,0.46046]
[1761316152570,1.405,3908.7,3908.6,10.41046]
[1761316152767,1.405,3908.7,3908.6,0.46046]
[1761316153282,1.405,3908.7,3908.6,10.40746]
[1761316153483,1.405,3908.7,3908.6,0.46046]
[1761316153776,0.9745,3908.6,3908.0,0.91111091]
[1761316153979,0.9745,3908.6,3908.1,6.081]
[1761316154174,0.4212,3907.8,3907.7,1.37168091]
[1761316154369,0.9745,3907.8,3907.7,10.39757]
[1761316154771,0.9745,3908.6,3908.5,0.46047]
[1761316154971,0.4212,3907.8,3907.7,10.84811091]
[1761316155172,1.3957,3907.8,3907.7,10.39757]
[1761316155379,0.9745,3907.8,3907.7,10.39757]
[1761316155575,0.9745,3907.7,3907.6,0.46058]
[1761316155883,0.9745,3907.7,3907.6,1.37711882]
[1761316156081,0.9745,3907.7,3907.6,11.31311882]
[1761316157171,0.9745,3907.7,3907.6,0.46058]
[1761316157482,0.9745,3907.7,3907.6,10.38658]
[1761316157677,0.9745,3907.7,3907.5,0.00220097]
[1761316157678,5.0,3907.7,3907.5,0.00220097]
[1761316157880,0.9745,3907.6,3907.5,0.00220097]
[1761316158178,0.97710189,3907.6,3907.5,0.00220097]
[1761316162987,0.00260189,3907.6,3907.5,0.00220097]
[1761316163682,0.00260189,3907.6,3907.5,0.46279097]
[1761316166182,0.9745,3908.0,3907.9,0.46055]
[1761316166387,0.9745,3908.0,3907.9,10.35155]
[1761316166585,0.4305,3908.7,3908.6,0.46046]
[1761316166784,0.4305,3908.7,3908.6,10.34246]
[1761316167090,1.405,3908.7,3908.6,9.882]
[1761316167282,1.40817745,3908.7,3908.6,9.882]
[1761316167680,1.40817745,3908.7,3908.6,10.34246]
[1761316169981,1.40817745,3908.7,3908.6,0.46046]
[1761316170181,1.40817745,3908.7,3908.6,9.33746]
[1761316170389,0.9745,3908.6,3908.0,0.91653882]
[1761316170585,0.9745,3908.0,3907.8,0.91653882]
[1761316170788,0.9745,3908.0,3907.5,0.00220097]
[1761316170985,0.9745,3908.0,3907.5,6.20220097]
[1761316171286,0.9745,3908.0,3907.8,0.46055]
[1761316171885,0.9745,3908.0,3907.5,6.20220097]
[1761316172189,0.9745,3908.0,3907.7,0.46057]
[1761316172887,0.9745,3908.0,3907.6,9.864]
[1761316172888,0.9745,3908.0,3907.6,10.32458]
[1761316173384,0.9745,3908.0,3907.7,0.46057]
[1761316173588,0.9745,3908.0,3907.6,0.46058]
[1761316173788,0.9745,3908.0,3907.8,0.46056]
[1761316174277,0.9745,3908.0,3907.5,0.00220097]
[1761316174483,0.9745,3908.0,3907.6,9.14]
[1761316174682,0.9257,3907.1,3907.0,0.91653882]
[1761316174888,0.9257,3907.1,3907.0,10.32465]
[1761316175485,0.9257,3907.1,3906.8,0.49966169]
[1761316175687,0.9257,3907.1,3906.8,0.00264325]
[1761316176691,5.9257,3907.1,3906.8,0.00264325]
[1761316176892,0.9257,3907.0,3906.8,0.00264325]
[1761316177284,0.9257,3907.0,3906.8,0.46332325]
[1761316177586,5.9257,3907.0,3906.8,0.00264325]
[1761316177791,0.8821,3906.6,3906.0,1.39836685]
[1761316177983,0.8821,3906.6,3906.0,0.48182803]
[1761316178187,0.8821,3906.6,3906.1,0.46076]
[1761316178688,0.8821,3906.6,3906.1,0.00218185]
[1761316178889,0.8821,3906.6,3906.1,0.46294185]
[1761316179087,0.8821,3906.6,3906.1,0.00218185]
[1761316179488,0.8821,3906.6,3906.1,0.46294185]
[1761316179889,0.8821,3906.6,3906.2,0.46074]
[1761316180086,0.8821,3906.6,3906.1,0.00218185]
[1761316180295,0.8821,3906.6,3906.4,0.46072]
[1761316181095,0.8821,3906.6,3906.1,0.00218185]
[1761316181299,0.8821,3906.6,3906.4,0.46073]
[1761316182792,0.8821,3907.1,3907.0,0.46066]
[1761316183190,0.8821,3906.6,3906.5,0.46071]